bitfinex-derivatives/quotes_ETHF0:USTF0_20240822
["timestamp","ask_amount","ask_price","bid_price","bid_amount"]
[1724313574279,6.995,2637.4,2637.3,0.38213166]
[1724313575272,3.203,2637.4,2637.3,0.38213166]
[1724313577069,3.58202,2637.4,2637.3,0.38213166]
[1724313577380,7.37402,2637.4,2637.3,0.38213166]
[1724313578475,8.32157,2637.4,2637.3,0.00310166]
[1724313582178,3.203,2637.4,2637.3,0.38213166]
[1724313582482,3.203,2637.4,2637.3,1.32972166]
[1724313583579,3.203,2637.4,2637.3,0.38213166]
[1724313583767,6.995,2637.4,2637.3,0.38213166]
[1724313584479,7.37402,2637.4,2637.3,0.38213166]
[1724313585177,3.58202,2637.4,2637.3,0.38213166]
[1724313585381,3.203,2637.4,2637.3,1.32972166]
[1724313586086,3.203,2637.4,2637.3,3.07522166]
[1724313586571,3.203,2637.4,2637.3,4.05900541]
[1724313586775,3.203,2637.4,2637.3,3.07522166]
[1724313587177,3.203,2637.4,2637.3,4.05900541]
[1724313588277,3.203,2637.4,2637.3,3.11141541]
[1724313588677,3.203,2637.4,2637.3,2.12763166]
[1724313589383,3.203,2637.4,2637.3,0.38213166]
[1724313591775,0.379,2637.6,2637.5,0.379]
[1724313591975,3.5868,2637.6,2637.5,0.379]
[1724313593987,3.2078,2637.6,2637.5,0.379]
[1724313595380,3.58679,2637.6,2637.5,0.379]
[1724313595584,3.2078,2637.6,2637.5,1.32652]
[1724313595885,3.58679,2637.6,2637.5,0.379]
[1724313599187,0.37902,2637.5,2637.4,0.37901]
[1724313599388,2.14392,2637.5,2637.4,0.37901]
[1724313599587,0.37902,2637.4,2637.3,1.36590541]
[1724313599779,0.37902,2637.4,2637.3,0.38212166]
[1724313599980,0.37902,2637.4,2637.3,1.36590541]
[1724313600184,0.37902,2637.4,2637.3,0.38212166]
[1724313602495,0.37902,2637.4,2637.1,0.29244375]
[1724313602794,3.2078,2637.3,2637.2,0.37905]
[1724313603693,3.2078,2637.3,2637.2,0.38215751]
[1724313603887,3.58683,2637.3,2637.2,0.00310751]
[1724313604592,3.2078,2637.3,2637.2,0.00310751]
[1724313605092,3.2078,2637.3,2637.2,1.89918416]
[1724313605289,3.2078,2637.3,2637.2,3.38046729]
[1724313605499,3.2078,2637.6,2637.2,12.66585878]
[1724313605692,0.00299188,2638.0,2637.4,1.9755071]
[1724313605993,3.2078,2638.4,2638.1,1.32622]
[1724313606192,1.8111,2638.7,2638.1,8.9864711]
[1724313606387,3.2078,2638.8,2638.1,11.63374979]
[1724313606692,3.2078,2638.5,2638.4,0.37887]
[1724313606897,3.21178715,2638.5,2638.4,0.37887]
[1724313607382,3.21178715,2638.5,2638.4,5.37887]
[1724313607584,3.21178715,2638.5,2638.4,7.2739488]
[1724313607788,3.21178715,2638.5,2638.4,5.37887]
[1724313607987,3.21178715,2638.5,2638.4,7.27397742]
[1724313608392,3.21178715,2638.5,2638.4,9.16927]
[1724313609090,1.9089,2639.1,2638.4,9.16927]
[1724313609293,3.2078,2639.0,2638.5,1.8558]
[1724313609601,0.3788,2638.9,2638.6,0.37884]
[1724313609790,0.94691,2639.2,2638.8,0.37881]
[1724313609791,0.37876,2639.2,2638.8,0.37881]
[1724313609987,0.37878,2639.1,2638.8,0.37881]
[1724313610188,0.38323959,2639.1,2638.8,0.37881]
[1724313610583,0.00445959,2639.1,2639.0,0.37879]
[1724313610996,0.00445959,2639.1,2639.0,9.16839]
[1724313611495,0.00445959,2639.1,2639.0,10.11537]
[1724313612196,0.00445959,2639.1,2639.0,9.16839]
[1724313613701,0.00445959,2639.1,2639.0,4.16839]
[1724313614091,0.00445959,2639.1,2639.0,9.16839]
[1724313614798,0.00445959,2639.1,2639.0,4.16839]
[1724313615091,0.00445959,2639.1,2639.0,10.11537]
[1724313615297,3.2078,2639.5,2639.4,0.37873]
[1724313615491,8.52819091,2660.3,2639.4,3.2078]
[1724313615492,3.2078,2640.2,2639.4,3.2078]
[1724313615695,1.8124,2639.9,2639.8,0.37867]
[1724313615892,2.19106,2639.9,2639.3,3.2078]
[1724313616198,0.94684,2639.4,2638.9,0.37879]
[1724313616389,0.94684,2639.4,2638.9,0.00489524]
[1724313616390,5.6584,2639.3,2638.9,0.00489524]
[1724313616598,3.2078,2639.2,2638.9,0.00489524]
[1724313616801,0.00964721,2639.4,2638.9,0.01057997]
[1724313617107,0.38837721,2639.4,2639.2,0.37875]
[1724313617599,0.00964721,2639.4,2639.3,0.37875]
[1724313618490,0.00964721,2639.4,2639.3,5.11442]
[1724313618999,0.00964721,2639.4,2639.3,9.26909]
[1724313619506,0.00964721,2639.4,2639.3,14.26909]
[1724313622905,0.00964721,2639.4,2639.3,5.11442]
[1724313623403,0.00964721,2639.4,2639.3,10.11442]
[1724313623591,0.00964721,2639.4,2639.3,11.06129]
[1724313624503,1.8069,2640.0,2639.9,0.37866]
[1724313624898,1.8254,2640.1,2640.0,0.37865]
[1724313625399,1.91408473,2640.3,2640.2,0.37862]
[1724313625599,1.91758456,2640.3,2640.2,0.37862]
[1724313625806,2.29618456,2640.3,2640.2,0.37862]
[1724313625995,2.29618456,2640.3,2640.1,0.37862]
[1724313626397,0.37864,2640.1,2639.8,2.8]
[1724313626592,3.2078,2640.2,2639.3,4.15467]
[1724313626993,0.00918456,2640.3,2640.0,0.37863]
[1724313627199,2.28013,2640.2,2640.0,0.37863]
[1724313627399,0.37863,2640.1,2639.9,0.37865]
[1724313627601,0.37863,2640.1,2639.6,2.70785]
[1724313628202,0.37863,2640.1,2640.0,0.37865]
[1724313628400,0.37864,2640.1,2639.6,2.70785]
[1724313628805,1.9015,2640.2,2639.6,2.70785]
[1724313628806,2.28013,2640.2,2640.0,0.37864]
[1724313629006,2.28013,2640.2,2639.9,0.37865]
[1724313629007,0.37865,2640.0,2639.9,0.37865]
[1724313629405,0.37863,2640.1,2639.9,0.37865]
[1724313629612,1.9015,2640.2,2639.9,0.37865]
[1724313629806,0.37864,2640.1,2639.9,0.37865]
[1724313630012,2.28013,2640.2,2640.1,0.37863]
[1724313631305,2.28013,2640.2,2639.7,0.94672]
[1724313631306,0.37865,2640.1,2640.0,0.37864]
[1724313632706,2.28013,2640.2,2640.1,0.37863]
[1724313633007,2.28013,2640.2,2639.8,0.37866]
[1724313633008,0.37867,2639.9,2639.8,0.37866]
[1724313633400,0.37869,2639.8,2639.7,0.37867]
[1724313633610,2.15449,2639.8,2639.7,0.37867]
[1724313634411,2.15449,2639.8,2639.4,0.37872]
[1724313634412,0.37872,2639.5,2639.4,0.37872]
[1724313634712,1.8353,2639.7,2639.6,0.3787]
[1724313635305,2.21399,2639.7,2639.6,0.3787]
[1724313636408,6.00199,2639.7,2639.6,0.3787]
[1724313636611,9.20979,2639.7,2639.6,0.3787]
[1724313636911,0.94676,2639.6,2638.9,0.01057997]
[1724313637114,0.37877,2639.2,2639.1,0.37876]
[1724313637416,0.37879,2639.0,2638.9,0.38937997]
[1724313637622,0.37879,2639.0,2638.9,0.01057997]
[1724313638114,2.30109,2639.0,2638.9,0.01057997]
[1724313638416,5.50889,2639.0,2638.9,0.01057997]
[1724313638610,10.24547,2639.0,2638.9,0.01057997]
[1724313638816,10.24547,2639.0,2638.4,0.37887]
[1724313638817,0.94705,2638.8,2638.4,0.37887]
[1724313639001,0.37887,2638.5,2638.4,0.37887]
[1724313639204,0.3789,2638.3,2637.8,2.73308]
[1724313639510,0.3789,2638.3,2637.7,2.76122]
[1724313639718,0.38882919,2638.3,2638.1,0.37891]
[1724313639915,0.00992919,2638.3,2638.2,0.3789]
[1724313642208,0.00992919,2638.3,2638.2,4.1693]
[1724313642607,0.00992919,2638.3,2638.2,0.3789]
[1724313644718,0.38881919,2638.3,2638.1,0.37891]
[1724313644916,0.38882919,2638.3,2638.1,0.37891]
[1724313645218,0.00992919,2638.3,2638.2,0.3789]
[1724313645814,0.00992919,2638.3,2638.1,0.37891]
[1724313646012,0.00992919,2638.3,2637.7,1.82300879]
[1724313646217,0.37892,2638.1,2637.9,0.37894]
[1724313646817,0.00992919,2638.3,2637.7,0.00920879]
[1724313647017,1.8494,2638.0,2637.7,0.00920879]
[1724313647224,2.22833,2638.0,2637.7,0.00920879]
[1724313647410,1.8917,2637.9,2637.8,0.37896]
[1724313648019,3.58673,2638.1,2637.9,0.37893]
[1724313648226,0.00992919,2638.3,2638.2,1.32617]
[1724313648520,0.00992919,2638.3,2638.2,0.3789]
[1724313650117,3.80032919,2638.3,2638.2,0.3789]
[1724313650508,3.80032919,2638.3,2638.1,0.37891]
[1724313650713,0.37891,2638.2,2638.1,0.37891]
[1724313651421,0.37891,2638.2,2637.7,0.95663879]
[1724313651725,0.37892,2638.1,2638.0,0.37892]
[1724313652022,0.37894,2638.0,2637.7,0.00920879]
[1724313652225,0.37894,2638.0,2637.8,0.37895]
[1724313652416,2.19035,2637.9,2637.8,0.37895]
[1724313652621,1.8114,2637.9,2637.8,0.37895]
[1724313653621,1.8066,2637.9,2637.8,0.37895]
[1724313654016,2.18555,2637.9,2637.8,0.37895]
[1724313654215,0.37896,2637.8,2637.7,0.00920879]
[1724313654426,1.778,2637.8,2637.7,0.38818879]
[1724313656229,2.15696,2637.8,2637.7,0.38818879]
[1724313656435,1.778,2637.8,2637.7,0.38818879]
[1724313656922,2.15696,2637.8,2637.7,0.38818879]
[1724313657931,2.15696,2637.8,2637.7,0.00920879]
[1724313658126,5.94816,2637.8,2637.7,0.00920879]
[1724313658323,5.94816,2637.8,2637.7,0.38818879]
[1724313658725,5.5692,2637.8,2637.7,0.38818879]
[1724313659125,5.94816,2637.8,2637.7,0.38818879]
[1724313660033,5.94816,2637.8,2637.7,0.00920879]
[1724313660239,5.94816,2637.8,2637.7,0.38818879]
[1724313661035,5.5692,2637.8,2637.7,0.38818879]
[1724313661229,5.92462,2638.1,2638.0,0.37893]
[1724313661230,4.9773,2638.1,2638.0,0.37893]
[1724313661432,5.35622,2638.1,2638.0,0.37893]
[1724313661735,10.94502,2638.1,2638.0,0.37893]
[1724313662030,0.37896,2637.9,2637.8,0.37896]
[1724313662227,0.37896,2637.8,2637.7,0.38817879]
[1724313662423,6.7757,2638.1,2637.8,0.9474]
[1724313662424,3.2078,2638.1,2637.8,0.9474]
[1724313662629,3.2078,2638.1,2638.0,1.32627]
[1724313663031,3.2078,2638.1,2638.0,5.11667]
[1724313663327,3.2078,2638.1,2638.0,0.37893]
[1724313664428,3.2078,2638.1,2637.7,2.89433879]
[1724313664429,0.37894,2638.0,2637.9,0.37894]
[1724313664629,0.37894,2638.0,2637.9,0.37895]
[1724313664830,0.37896,2637.9,2637.8,0.37895]
[1724313665029,0.37896,2637.9,2637.8,0.37896]
[1724313665633,4.15511,2638.1,2637.9,0.37893]
[1724313665634,0.37893,2638.0,2637.9,0.37893]
[1724313665837,3.2078,2638.1,2638.0,0.37893]
[1724313666836,0.38882919,2638.3,2638.2,1.32617]
[1724313666837,0.00992919,2638.3,2638.2,1.32617]
[1724313667038,0.00992919,2638.3,2638.2,6.06384]
[1724313667340,0.00992919,2638.3,2638.2,11.06384]
[1724313667540,3.2078,2638.7,2638.6,0.37885]
[1724313668544,3.2078,2638.7,2638.3,2.8486]
[1724313668545,0.37887,2638.5,2638.4,0.37886]
[1724313668839,0.37885,2638.6,2638.5,0.37885]
[1724313669342,3.21149434,2638.7,2638.6,0.37885]
[1724313669841,3.21149434,2638.7,2638.6,4.16845]
[1724313670034,0.00369434,2638.7,2638.6,4.16845]
[1724313670232,0.00369434,2638.7,2638.6,7.00607]
[1724313670448,0.00369434,2638.7,2638.6,16.16099]
[1724313671336,0.00369434,2638.7,2638.6,15.21387]
[1724313672644,0.00369434,2638.7,2638.6,6.05895]
[1724313675347,0.00369434,2638.7,2638.6,7.00607]
[1724313678042,0.00369434,2638.7,2638.6,6.05895]
[1724313678633,0.00369434,2638.7,2638.6,7.00607]
[1724313679348,0.00369434,2638.7,2638.6,0.37885]
[1724313683147,0.37885,2638.6,2638.2,4.15506]
[1724313683347,3.90884434,2638.7,2638.6,0.37885]
[1724313683539,3.52999434,2638.7,2638.6,0.37885]
[1724313684143,3.90882434,2638.7,2638.6,0.37885]
[1724313685551,3.52999434,2638.7,2638.6,0.37885]
[1724313686353,3.90882434,2638.7,2638.6,0.37885]
[1724313687050,3.90882434,2638.7,2638.6,9.27049]
[1724313687051,0.00369434,2638.7,2638.6,9.27049]
[1724313687254,0.00369434,2638.7,2638.6,6.06269]
[1724313687856,0.00369434,2638.7,2638.6,4.05209]
[1724313688751,0.00369434,2638.7,2638.6,7.84169]
[1724313690659,4.73e-06,2638.9,2638.8,2.27292]
[1724313690954,4.089,2639.6,2639.5,0.37872]
[1724313691256,2.22239,2639.7,2639.6,0.3787]
[1724313691660,6.01326042,2639.7,2639.6,0.38192418]
[1724313692165,6.01326042,2639.7,2639.6,0.00322418]
[1724313692352,6.01326042,2639.7,2639.4,0.00568473]
[1724313692353,0.37872,2639.5,2639.4,0.00568473]
[1724313692658,1.32552,2639.5,2639.4,0.00568473]
[1724313692858,0.00287042,2639.7,2639.6,0.3787]
[1724313693352,3.79087042,2639.7,2639.6,0.38287956]
[1724313694360,0.00287042,2639.7,2639.6,0.38287956]
[1724313694565,3.79087042,2639.7,2639.6,0.38287956]
[1724313695561,10.11629042,2639.7,2639.6,1e-08]
[1724313695756,5.11629042,2639.7,2639.6,1e-08]
[1724313696052,10.11629042,2639.7,2639.6,1e-08]
[1724313696260,5.11629042,2639.7,2639.6,1e-08]
[1724313696461,4.16956042,2639.7,2639.6,1e-08]
[1724313696760,9.16956042,2639.7,2639.6,0.37870001]
[1724313697156,3.79087042,2639.7,2639.6,0.37870001]
[1724313697358,4.16956042,2639.7,2639.6,0.37870001]
[1724313697667,0.38156042,2639.7,2639.6,0.37870001]
[1724313697862,4.16956042,2639.7,2639.6,0.37870001]
[1724313698366,0.00287042,2639.7,2639.6,0.37870001]
[1724313698663,0.00287042,2639.7,2639.6,1.32546001]
[1724313699458,0.00287042,2639.7,2639.6,2.27222001]
[1724313699658,0.00287042,2639.7,2639.6,1.32546001]
[1724313699859,3.79087042,2639.7,2639.6,3.10126001]
[1724313700156,0.00287042,2639.7,2639.6,0.3787]
[1724313701070,0.38156042,2639.7,2639.6,0.38206154]
[1724313702764,0.00287042,2639.7,2639.6,1.32882154]
[1724313703458,0.00287042,2639.7,2639.6,3.24412154]
[1724313703664,0.00287042,2639.7,2639.6,2.29736154]
[1724313704072,0.00287042,2639.7,2639.6,3.24412154]
[1724313705059,0.00287042,2639.7,2639.6,7.03212154]
[1724313705260,0.00568473,2639.9,2639.8,0.37867]
[1724313705567,0.00115142,2639.9,2639.8,8.32116]
[1724313706366,0.00585664,2639.9,2639.8,8.32116]
[1724313706571,0.00585664,2639.9,2639.8,7.37447]
[1724313706772,0.00585664,2639.9,2639.8,3.2078]
[1724313706967,0.38452664,2639.9,2639.7,0.37868]
[1724313707170,0.37869,2639.7,2639.6,0.00336154]
[1724313707768,2.26868,2639.8,2639.6,0.38206154]
[1724313707960,2.26868,2639.8,2639.6,0.00336154]
[1724313708160,0.37869,2639.7,2639.6,0.00336154]
[1724313709068,4.16669,2639.7,2639.6,0.00336154]
[1724313709574,3.788,2639.7,2639.6,0.00336154]
[1724313709765,4.16669,2639.7,2639.6,0.00336154]
[1724313709966,2.26868,2639.8,2639.6,0.38206154]
[1724313710467,0.00585664,2639.9,2639.8,0.37867]
[1724313710868,3.79385664,2639.9,2639.8,0.37867]
[1724313711070,0.00585664,2639.9,2639.8,0.37867]
[1724313716178,0.00585664,2639.9,2639.8,1.32536]
[1724313716685,4.089,2640.6,2640.0,0.94661]
[1724313716686,5.03542,2640.6,2640.0,0.94661]
[1724313716891,0.3786,2640.4,2640.3,0.3786]
[1724313717778,0.38323433,2640.4,2640.3,0.3786]
[1724313718573,0.37862,2640.3,2640.2,0.37861]
[1724313720080,0.38323433,2640.4,2640.3,0.3786]
[1724313720485,4.17043433,2640.4,2640.3,0.3786]
[1724313720685,0.38323433,2640.4,2640.3,0.3786]
[1724313722378,1.32971433,2640.4,2640.3,0.3786]
[1724313722681,0.38323433,2640.4,2640.3,0.3786]
[1724313723279,3.79183433,2640.4,2639.7,9.57502]
[1724313723494,0.37867,2639.9,2639.8,0.37866]
[1724313723686,3.21243433,2640.4,2639.6,0.38205154]
[1724313723687,0.37869,2639.7,2639.6,0.38205154]
[1724313723887,2.16218,2639.8,2639.7,0.37868]
[1724313724185,0.37869,2639.7,2639.6,0.38206154]
[1724313724376,0.37869,2639.7,2639.6,0.00336154]
[1724313724584,4.16669,2639.7,2639.6,0.00336154]
[1724313725189,3.788,2639.7,2639.6,0.38206154]
[1724313725374,4.16669,2639.7,2639.6,0.00336154]
[1724313725576,4.16669,2639.7,2639.6,0.38206154]
[1724313725577,3.788,2639.7,2639.6,0.38206154]
[1724313725790,4.16669,2639.7,2639.6,0.00336154]
[1724313725988,5.11342,2639.7,2639.6,0.00336154]
[1724313726181,4.16669,2639.7,2639.6,0.00336154]
[1724313726879,4.16669,2639.7,2639.4,0.00568473]
[1724313726880,1.32552,2639.5,2639.4,0.00568473]
[1724313727087,0.37872,2639.5,2639.4,0.00568473]
[1724313727284,10.11432,2639.5,2639.4,0.00568473]
[1724313727891,10.11432,2639.5,2639.4,0.00905896]
[1724313728094,9.16752,2639.5,2639.4,0.00905896]
[1724313728290,4.16752,2639.5,2639.4,0.00905896]
[1724313728883,3.7888,2639.5,2639.4,0.38778896]
[1724313729190,3.7888,2639.5,2639.4,0.00905896]
[1724313729191,4.16752,2639.5,2639.4,0.00905896]
[1724313730586,0.37871,2639.6,2639.4,0.38778896]
[1724313731085,0.37872,2639.5,2639.4,0.00905896]
[1724313731592,4.16752,2639.5,2639.4,0.00905896]
[1724313731986,4.16752,2639.5,2639.4,0.38778896]
[1724313731987,0.37872,2639.5,2639.4,0.38778896]
[1724313732289,4.16752,2639.5,2639.4,0.00905896]
[1724313732695,4.16752,2639.5,2639.4,0.38778896]
[1724313732992,4.16752,2639.5,2639.4,0.00905896]
[1724313733178,1.7835,2639.8,2639.5,0.37871]
[1724313733383,1.7835,2639.8,2639.4,3.21685896]
[1724313733384,0.37871,2639.6,2639.4,3.21685896]
[1724313733586,0.37871,2639.6,2639.5,0.37871]
[1724313733778,1.7835,2639.8,2639.4,3.21685896]
[1724313734186,2.16218,2639.8,2639.7,0.37869]
[1724313734393,2.16218,2639.8,2639.6,0.37869]
[1724313734394,0.37869,2639.7,2639.6,0.37869]
[1724313735290,1.7835,2639.8,2639.4,3.21685896]
[1724313735485,0.37392,2639.5,2639.4,3.59558896]
[1724313735689,0.37392,2639.5,2639.4,0.38778896]
[1724313736393,0.37392,2639.5,2639.4,0.00905896]
[1724313736880,0.37392,2639.5,2639.4,0.38778896]
[1724313737489,0.37392,2639.5,2639.4,0.00905896]
[1724313738290,4.16272,2639.5,2639.4,0.00905896]
[1724313739303,4.16272,2639.5,2639.4,0.38778896]
[1724313739489,4.16272,2639.5,2639.4,0.00905896]
[1724313744083,4.16272,2639.5,2639.4,0.38778896]
[1724313744294,4.16272,2639.5,2639.4,0.00905896]
[1724313744695,4.16272,2639.5,2639.4,0.38778896]
[1724313745688,0.37392,2639.5,2639.4,0.38778896]
[1724313745888,0.37872,2639.6,2639.5,0.37871]
[1724313746284,4.16752,2639.6,2639.5,0.37871]
[1724313746484,0.37872,2639.5,2639.4,0.38777896]
[1724313752095,4.16752,2639.5,2639.4,0.38777896]
[1724313752300,0.37872,2639.5,2639.4,0.38777896]
[1724313753705,0.37872,2639.5,2639.4,0.00905896]
[1724313754707,4.16752,2639.5,2639.4,0.00905896]
[1724313754891,12.97202,2639.5,2639.4,0.00905896]
[1724313755696,7.02522,2639.5,2639.4,1e-08]
[1724313755899,10.23302,2639.5,2639.4,1e-08]
[1724313756094,10.23302,2639.5,2639.4,0.37873001]
[1724313756291,9.28622,2639.5,2639.4,0.37873001]
[1724313756494,9.28622,2639.5,2639.4,1e-08]
[1724313756695,9.28622,2639.5,2639.4,0.37873001]
[1724313757101,9.28622,2639.5,2639.4,1e-08]
[1724313757307,10.23302,2639.5,2639.4,1e-08]
[1724313758195,10.23302,2639.5,2639.4,0.37873001]
[1724313758396,10.23302,2639.5,2639.4,1e-08]
[1724313758707,7.02522,2639.5,2639.4,1e-08]
[1724313759107,4.16752,2639.5,2639.4,0.37873001]
[1724313759298,0.37872,2639.5,2639.4,0.37873001]
[1724313759498,1.32552,2639.5,2639.4,1e-08]
[1724313759807,1.32552,2639.5,2639.4,0.37873001]
[1724313760799,1.32552,2639.5,2639.4,1e-08]
[1724313761200,8.32212,2639.5,2639.4,1e-08]
[1724313761501,9.26892,2639.5,2639.4,1e-08]
[1724313761908,14.26892,2639.5,2639.4,1e-08]
[1724313764119,8.32212,2639.5,2639.4,1e-08]
[1724313764518,7.37532,2639.5,2639.4,0.37873001]
[1724313768211,7.37532,2639.5,2639.4,1e-08]
[1724313768812,9.20552,2639.5,2639.4,1e-08]
[1724313770022,11.09912,2639.5,2639.4,1e-08]
[1724313770215,16.09912,2639.5,2639.4,1e-08]
[1724313772619,11.09912,2639.5,2639.4,1e-08]
[1724313773922,7.89132,2639.5,2639.4,1e-08]
[1724313774118,11.09912,2639.5,2639.4,1e-08]
[1724313774728,10.15232,2639.5,2639.4,1e-08]
[1724313775223,5.41672,2639.5,2639.4,0.37873001]
[1724313777634,5.41672,2639.5,2639.4,0.38353001]
[1724313778432,10.15232,2639.5,2639.4,0.00480001]
[1724313779319,11.09912,2639.5,2639.4,0.00480001]
[1724313779520,10.15232,2639.5,2639.4,0.00480001]
[1724313780424,11.09912,2639.5,2639.4,0.00480001]
[1724313782236,16.09912,2639.5,2639.4,0.00480001]
[1724313785625,10.15232,2639.5,2639.4,0.00480001]
[1724313788740,9.20552,2639.5,2639.4,0.38353001]
[1724313788933,5.41672,2639.5,2639.4,0.38353001]
[1724313789836,5.41672,2639.5,2639.4,0.00480001]
[1724313790036,6.36352,2639.5,2639.4,0.00480001]
[1724313791541,10.15232,2639.5,2639.4,0.00480001]
[1724313794942,10.15232,2639.5,2639.4,1e-08]
[1724313796749,16.09912,2639.5,2639.4,1e-08]
[1724313802249,15.15232,2639.5,2639.4,1e-08]
[1724313802553,10.15232,2639.5,2639.4,1e-08]
[1724313804751,15.15232,2639.5,2639.4,1e-08]
[1724313805853,16.09912,2639.5,2639.4,1e-08]
[1724313806454,0.37882,2638.8,2638.6,1.8525]
[1724313806660,3.2078,2638.7,2638.6,1.8525]
[1724313806864,3.2078,2638.7,2638.6,2.23134]
[1724313807256,3.625,2639.0,2638.8,0.37881]
[1724313807456,4.00379,2639.0,2638.8,0.00438359]
[1724313809058,0.3788,2638.9,2638.8,0.00438359]
[1724313810556,4.1684,2638.9,2638.8,0.00438359]
[1724313810758,6.0664,2638.9,2638.8,0.00438359]
[1724313811861,7.01341,2638.9,2638.8,0.00438359]
[1724313812655,7.96042,2638.9,2638.8,0.00438359]
[1724313812864,7.96042,2638.9,2638.8,1e-08]
[1724313813370,7.01341,2638.9,2638.8,1e-08]
[1724313813571,0.3788,2638.9,2638.8,1e-08]
[1724313814055,1.32581,2638.9,2638.8,1e-08]
[1724313815265,5.11541,2638.9,2638.8,1e-08]
[1724313815873,4.1684,2638.9,2638.8,1e-08]
[1724313816061,3.58658,2639.1,2638.8,1e-08]
[1724313816370,0.3788,2638.9,2638.8,1.93330001]
[1724313816671,0.3788,2638.9,2638.8,1e-08]
[1724313816880,4.1684,2638.9,2638.8,1e-08]
[1724313817055,6.89371,2638.9,2638.8,1e-08]
[1724313817464,11.89371,2638.9,2638.8,1e-08]
[1724313817659,6.89371,2638.9,2638.8,1e-08]
[1724313817974,14.74782,2638.9,2638.8,1e-08]
[1724313819579,14.74782,2638.9,2638.8,0.00480001]
[1724313820273,14.74782,2638.9,2638.8,1e-08]
[1724313820474,0.94725,2638.3,2637.7,0.37897]
[1724313820663,3.58672,2638.1,2637.9,1.8182]
[1724313820870,0.37893,2638.0,2637.9,1.8182]
[1724313821175,3.58672,2638.1,2637.9,1.8182]
[1724313821379,3.59150759,2638.1,2637.9,1.82304443]
[1724313821572,0.37893,2638.0,2637.9,1.82304443]
[1724313821767,3.59151759,2638.1,2637.9,1.82304443]
[1724313822275,0.37893,2638.0,2637.9,1.82304443]
[1724313823284,0.37893,2638.0,2637.9,0.00484443]
[1724313823574,4.17013,2638.0,2637.9,1.94814443]
[1724313823775,5.11746,2638.0,2637.9,0.00484443]
[1724313823975,6.93386,2638.0,2637.9,0.00484443]
[1724313825378,7.88119,2638.0,2637.9,0.00484443]
[1724313825672,1.32636,2637.8,2637.7,0.00568473]
[1724313825874,4.53416,2637.8,2637.7,0.00568473]
[1724313826072,0.94744,2637.7,2636.6,3.2078]
[1724313826267,0.37904,2637.3,2637.0,0.37907]
[1724313826468,3.2078,2637.4,2637.2,0.37904]
[1724313826669,3.2078,2637.4,2637.3,5.366]
[1724313827080,3.2078,2637.4,2637.3,5.74503]
[1724313827271,3.2078,2637.4,2637.3,5.366]
[1724313831180,3.58682,2637.4,2637.3,3.5981]
[1724313832484,3.2078,2637.4,2637.3,1.7706]
[1724313832685,4.53437,2637.4,2637.3,3.6582]
[1724313833487,4.53437,2637.4,2637.3,1.7706]
[1724313833679,4.53437,2637.4,2637.2,0.00280507]
[1724313833680,0.37903,2637.3,2637.2,0.00280507]
[1724313833883,2.22773,2637.3,2637.2,0.00280507]
[1724313834574,3.17531,2637.3,2637.2,0.00280507]
[1724313835681,6.96731,2637.3,2637.2,0.00280507]
[1724313836489,2.22773,2637.3,2637.2,0.00280507]
[1724313836788,0.37903,2637.3,2637.2,0.00280507]
[1724313837091,3.58683,2637.4,2637.2,0.00280507]
[1724313837588,0.37903,2637.3,2637.2,0.00280507]
[1724313840587,3.24681,2637.3,2637.2,0.00280507]
[1724313840794,8.85031,2637.3,2637.2,0.00280507]
[1724313842483,4.17103,2637.3,2637.2,0.00280507]
[1724313842688,0.37903,2637.3,2637.2,0.00280507]
[1724313844399,1.32661,2637.3,2637.2,0.00280507]
[1724313845195,2.27419,2637.3,2637.2,0.00280507]
[1724313845396,2.27419,2637.3,2637.1,0.00568473]
[1724313845397,2.27428,2637.2,2637.1,0.00568473]
[1724313845590,7.83998,2637.2,2637.1,0.00568473]
[1724313845788,11.63198,2637.2,2637.1,0.00568473]
[1724313846296,11.63198,2637.2,2637.1,0.01054313]
[1724313846698,1.32686,2636.8,2636.7,1.7847]
[1724313846999,0.37912,2636.7,2636.6,1.893]
[1724313847191,2.17722,2636.7,2636.6,1.893]
[1724313847802,2.17722,2636.7,2636.6,1.8977874]
[1724313848298,3.12502,2636.7,2636.6,0.0047874]
[1724313848699,15.12562,2636.7,2636.6,0.0047874]
[1724313849091,10.12562,2636.7,2636.6,0.0047874]
[1724313849492,13.90322,2636.7,2636.6,0.0047874]
[1724313850189,3.2078,2636.7,2636.4,0.00568473]
[1724313850400,3.2078,2636.7,2636.5,0.37914]
[1724313850602,3.58692,2636.7,2636.6,1.8511]
[1724313851205,3.2078,2636.7,2636.6,1.85469483]
[1724313851405,3.58692,2636.7,2636.6,1.85469483]
[1724313852905,4.53472,2636.7,2636.6,0.00359483]
[1724313853096,1.32702,2636.5,2636.4,0.00568473]
[1724313854202,1.32702,2636.5,2636.4,0.00942319]
[1724313854601,0.37915,2636.5,2636.4,0.00942319]
[1724313855404,0.37923,2636.0,2635.6,0.37927]
[1724313855711,0.37923,2636.0,2635.4,3.2078]
[1724313855712,0.37923,2636.0,2635.7,4.08646]
[1724313855906,0.37923,2636.0,2635.7,3.7072]
[1724313856298,0.37924,2635.9,2635.7,3.7072]
[1724313856501,0.00321619,2635.9,2635.7,3.71118164]
[1724313856702,0.00321619,2635.9,2635.8,0.37925]
[1724313857104,0.00321619,2635.9,2635.8,4.17285]
[1724313858007,0.00321619,2635.9,2635.8,3.7936]
[1724313858202,0.00321619,2635.9,2635.8,4.17285]
[1724313865616,0.00568473,2636.1,2636.0,0.37922]
[1724313866001,0.00568473,2636.1,2636.0,5.94562]
[1724313866416,0.00922083,2636.1,2636.0,5.94562]
[1724313866810,1.10222083,2636.1,2636.0,5.94562]
[1724313867114,0.37923,2635.9,2635.7,1.86418164]
[1724313867311,1.47223,2635.9,2635.8,3.7936]
[1724313868408,0.37923,2635.9,2635.8,3.7936]
[1724313868807,0.37925,2635.8,2635.7,1.86418164]
[1724313869209,0.37924,2635.9,2635.7,6.03704164]
[1724313869513,0.37924,2635.9,2635.7,2.24344164]